{"text_format":"3","workbook":"xlsx","n_sheets":6,"sheets":["Αρχ. καταγρ. κλήσεων πωλήσεων","Στοιχεία επικοινωνίας πελάτη","Πριν από την κλήση","Κλήση για πρώτη φορά","Πληροφορίες πωλήσεων","Παρακολούθηση"],"not_rendered":{"defined_names":14},"read":"whole","date_system":"1900"}

{"sheet":"Αρχ. καταγρ. κλήσεων πωλήσεων","index":0,"n_rows":13,"n_cols":7,"rows_kept":13}
[null," Επωνυμία εταιρείας"]
[null,"Αρχ. καταγρ. κλήσεων πωλήσεων"]
[null,"Κλήση #","Πελάτης","Εταιρεία","Ημερομηνία","Ώρα","Σημειώσεις"]
[null,1,"Ιωάννης Ξυλαράς",{"$f":"IF(ΑρχείοΚαταγραφήςΚλήσεωνΠωλήσεων[[#This Row],[Πελάτης]]=\"\",\"\",IFERROR(VLOOKUP(ΑρχείοΚαταγραφήςΚλήσεωνΠωλήσεων[[#This Row],[Πελάτης]],ΣτοιχείαΕπικοινωνίαςΠελατών[],2,0),\"Not Found\"))","v":"Proseware, Inc."},{"$f":"TODAY()-5","v":"2016-10-12"},"08:30:00"]
[null,2,"Ίκαρος Ροδίτης",{"$f":"IF(ΑρχείοΚαταγραφήςΚλήσεωνΠωλήσεων[[#This Row],[Πελάτης]]=\"\",\"\",IFERROR(VLOOKUP(ΑρχείοΚαταγραφήςΚλήσεωνΠωλήσεων[[#This Row],[Πελάτης]],ΣτοιχείαΕπικοινωνίαςΠελατών[],2,0),\"Not Found\"))","v":"Litware, Inc."},{"$f":"TODAY()-5","v":"2016-10-12"},"09:00:00"]
[null,3,"Αλεξία Αντωνοπούλου",{"$f":"IF(ΑρχείοΚαταγραφήςΚλήσεωνΠωλήσεων[[#This Row],[Πελάτης]]=\"\",\"\",IFERROR(VLOOKUP(ΑρχείοΚαταγραφήςΚλήσεωνΠωλήσεων[[#This Row],[Πελάτης]],ΣτοιχείαΕπικοινωνίαςΠελατών[],2,0),\"Not Found\"))","v":"Northwind Traders"},"2016-10-12","09:30:00"]
[null,4,"Κώστας Χονδρός",{"$f":"IF(ΑρχείοΚαταγραφήςΚλήσεωνΠωλήσεων[[#This Row],[Πελάτης]]=\"\",\"\",IFERROR(VLOOKUP(ΑρχείοΚαταγραφήςΚλήσεωνΠωλήσεων[[#This Row],[Πελάτης]],ΣτοιχείαΕπικοινωνίαςΠελατών[],2,0),\"Not Found\"))","v":"Lucerne Publishing"},"2016-10-12","10:00:00"]
[null,5,"Ανδρέας Σωτηρίου",{"$f":"IF(ΑρχείοΚαταγραφήςΚλήσεωνΠωλήσεων[[#This Row],[Πελάτης]]=\"\",\"\",IFERROR(VLOOKUP(ΑρχείοΚαταγραφήςΚλήσεωνΠωλήσεων[[#This Row],[Πελάτης]],ΣτοιχείαΕπικοινωνίαςΠελατών[],2,0),\"Not Found\"))","v":"Margie's Travel"},"2016-10-12","10:30:00"]
[null,6,"Ιωάννης Ξυλαράς",{"$f":"IF(ΑρχείοΚαταγραφήςΚλήσεωνΠωλήσεων[[#This Row],[Πελάτης]]=\"\",\"\",IFERROR(VLOOKUP(ΑρχείοΚαταγραφήςΚλήσεωνΠωλήσεων[[#This Row],[Πελάτης]],ΣτοιχείαΕπικοινωνίαςΠελατών[],2,0),\"Not Found\"))","v":"Proseware, Inc."},{"$f":"TODAY()-3","v":"2016-10-14"},"11:00:00"]
[null,7,"Ίκαρος Ροδίτης",{"$f":"IF(ΑρχείοΚαταγραφήςΚλήσεωνΠωλήσεων[[#This Row],[Πελάτης]]=\"\",\"\",IFERROR(VLOOKUP(ΑρχείοΚαταγραφήςΚλήσεωνΠωλήσεων[[#This Row],[Πελάτης]],ΣτοιχείαΕπικοινωνίαςΠελατών[],2,0),\"Not Found\"))","v":"Litware, Inc."},{"$f":"TODAY()-3","v":"2016-10-14"},"11:30:00"]
[null,8,"Ιωάννης Ξυλαράς",{"$f":"IF(ΑρχείοΚαταγραφήςΚλήσεωνΠωλήσεων[[#This Row],[Πελάτης]]=\"\",\"\",IFERROR(VLOOKUP(ΑρχείοΚαταγραφήςΚλήσεωνΠωλήσεων[[#This Row],[Πελάτης]],ΣτοιχείαΕπικοινωνίαςΠελατών[],2,0),\"Not Found\"))","v":"Proseware, Inc."},{"$f":"TODAY()-1","v":"2016-10-16"},"12:00:00"]
[null,9,"Ανδρέας Σωτηρίου",{"$f":"IF(ΑρχείοΚαταγραφήςΚλήσεωνΠωλήσεων[[#This Row],[Πελάτης]]=\"\",\"\",IFERROR(VLOOKUP(ΑρχείοΚαταγραφήςΚλήσεωνΠωλήσεων[[#This Row],[Πελάτης]],ΣτοιχείαΕπικοινωνίαςΠελατών[],2,0),\"Not Found\"))","v":"Margie's Travel"},{"$f":"TODAY()-1","v":"2016-10-16"},"12:30:00"]
[null,10,"Ανδρέας Σωτηρίου",{"$f":"IF(ΑρχείοΚαταγραφήςΚλήσεωνΠωλήσεων[[#This Row],[Πελάτης]]=\"\",\"\",IFERROR(VLOOKUP(ΑρχείοΚαταγραφήςΚλήσεωνΠωλήσεων[[#This Row],[Πελάτης]],ΣτοιχείαΕπικοινωνίαςΠελατών[],2,0),\"Not Found\"))","v":"Margie's Travel"},{"$f":"TODAY()","v":"2016-10-17"},"13:00:00"]

{"sheet":"Στοιχεία επικοινωνίας πελάτη","index":1,"n_rows":8,"n_cols":8,"rows_kept":8}
[null,{"$f":"ΕπωνυμίαΕταιρείας","v":" Επωνυμία εταιρείας"}]
[null,"Στοιχεία επικοινωνίας πελάτη"]
[null,"Όνομα πελάτη","Επωνυμία εταιρείας","Διεύθυνση","Πόλη, Νομός Ταχυδρομικός κώδικας","Κύριος αριθμός τηλεφώνου","Δευτερεύων αριθμός τηλεφώνου","Διεύθυνση ηλεκτρονικού ταχυδρομείου"]
[null,"Ίκαρος Ροδίτης","Litware, Inc.","100 Main St","Cherrytown, NH 123456","(541) 555-0135","(541) 555-0136","ikaros@litwareinc.com"]
[null,"Κώστας Χονδρός","Lucerne Publishing","567 Second Ave","Spaulding, NY 23456","(425) 555-0198","(425) 555-0199","kostas@lucernepublishing.com"]
[null,"Ανδρέας Σωτηρίου","Margie's Travel","987 Orange St","Mountain View, IL 34567","(888) 555-0125","(888) 555-0126","andreas@margiestravel.com"]
[null,"Αλεξία Αντωνοπούλου","Northwind Traders","890 N 3rd Ave","Chatham, CA 45678","(541) 555-0175","(541) 555-0176","alexia@northwindtraders.com"]
[null,"Ιωάννης Ξυλαράς","Proseware, Inc.","123 Major Dr","Shelbyville, MA 56789","(509) 555-0150","(509) 555-0151","ioannis@proseware.com"]

{"sheet":"Πριν από την κλήση","index":2,"n_rows":13,"n_cols":3,"rows_kept":13}
[null,{"$f":"ΕπωνυμίαΕταιρείας","v":" Επωνυμία εταιρείας"}]
[null,"Λίστα ελέγχου κλήσης πωλήσεων"]
[null,"Πλαίσιο ελέγχου","Πριν από την κλήση"]
[null,null,"Έλεγχος ιστορικού πελάτη"]
[null,null,"Έλεγχος ιστορικού πελάτη υπαλλήλου"]
[null,null,"Έλεγχος προτεραιοτήτων και στρατηγικής πωλήσεων"]
[null,null,"Προσθήκη στοιχείου"]
[null,null,"Προσθήκη στοιχείου"]
[null,null,"Προσθήκη στοιχείου"]
[null,null,"Προσθήκη στοιχείου"]
[null,null,"Προσθήκη στοιχείου"]
[null,null,"Προσθήκη στοιχείου"]
[null,null,"Προσθήκη στοιχείου"]

{"sheet":"Κλήση για πρώτη φορά","index":3,"n_rows":13,"n_cols":3,"rows_kept":13}
[null,{"$f":"ΕπωνυμίαΕταιρείας","v":" Επωνυμία εταιρείας"}]
[null,"Λίστα ελέγχου κλήσης πωλήσεων"]
[null,"Πλαίσιο ελέγχου","Κλήση για πρώτη φορά"]
[null,null,"Άμεση κλήση στο αρμόδιο πρόσωπο"]
[null,null,"Σαφής εισαγωγή"]
[null,null,"Προσθήκη στοιχείου"]
[null,null,"Προσθήκη στοιχείου"]
[null,null,"Προσθήκη στοιχείου"]
[null,null,"Προσθήκη στοιχείου"]
[null,null,"Προσθήκη στοιχείου"]
[null,null,"Προσθήκη στοιχείου"]
[null,null,"Προσθήκη στοιχείου"]
[null,null,"Προσθήκη στοιχείου"]

{"sheet":"Πληροφορίες πωλήσεων","index":4,"n_rows":13,"n_cols":3,"rows_kept":13}
[null,{"$f":"ΕπωνυμίαΕταιρείας","v":" Επωνυμία εταιρείας"}]
[null,"Λίστα ελέγχου κλήσης πωλήσεων"]
[null,"Πλαίσιο ελέγχου","Πληροφορίες πωλήσεων"]
[null,null,"Σαφής και ενδιαφέρουσα εισαγωγή για το προϊόν/υπηρεσία"]
[null,null,"Παρουσίαση όλων των βασικών στοιχείων"]
[null,null,"Αναφορά παρουσίας στο web (π. χ. τοποθεσία web, κοινωνικά δίκτυα)"]
[null,null,"Προσθήκη στοιχείου"]
[null,null,"Προσθήκη στοιχείου"]
[null,null,"Προσθήκη στοιχείου"]
[null,null,"Προσθήκη στοιχείου"]
[null,null,"Προσθήκη στοιχείου"]
[null,null,"Προσθήκη στοιχείου"]
[null,null,"Προσθήκη στοιχείου"]

{"sheet":"Παρακολούθηση","index":5,"n_rows":13,"n_cols":3,"rows_kept":13}
[null,{"$f":"ΕπωνυμίαΕταιρείας","v":" Επωνυμία εταιρείας"}]
[null,"Λίστα ελέγχου κλήσης πωλήσεων"]
[null,"Πλαίσιο ελέγχου","Παρακολούθηση πληροφοριών"]
[null,null,"Στοιχεία επικοινωνίας πελάτη"]
[null,null,"Προσωπικές στοιχεία πελάτη"]
[null,null,"Προτιμήσεις πελάτη"]
[null,null,"Επαναπρογραμματισμός επικοινωνίας;"]
[null,null,"Πραγματοποιήθηκε πώληση;"]
[null,null,"Προσθήκη στοιχείου"]
[null,null,"Προσθήκη στοιχείου"]
[null,null,"Προσθήκη στοιχείου"]
[null,null,"Προσθήκη στοιχείου"]
[null,null,"Προσθήκη στοιχείου"]